bitfinex-derivatives/quotes_BTCF0:USTF0_20250811
["timestamp","ask_amount","ask_price","bid_price","bid_amount"]
[1754883378298,0.8768988,121620.0,121610.0,0.06304765]
[1754883378495,1.6481788,121620.0,121610.0,0.06304765]
[1754883378692,1.6481788,121620.0,121610.0,0.18613877]
[1754883378903,1.6481788,121620.0,121610.0,0.23114877]
[1754883379100,0.8768988,121620.0,121610.0,0.23114877]
[1754883379301,1.6481788,121620.0,121610.0,0.23114877]
[1754883379497,0.8778988,121620.0,121610.0,0.23114877]
[1754883379696,1.6491788,121620.0,121610.0,0.23114877]
[1754883380094,0.8778988,121620.0,121610.0,0.23114877]
[1754883380300,0.8768988,121620.0,121610.0,0.23114877]
[1754883380499,1.6501788,121620.0,121610.0,0.23114877]
[1754883380700,0.7144428,121620.0,121610.0,0.23114877]
[1754883380902,1.4857228,121620.0,121610.0,0.18613877]
[1754883381200,1.6501788,121620.0,121610.0,0.18613877]
[1754883382108,1.8425363,121600.0,121590.0,0.31811431]
[1754883382301,1.8425363,121600.0,121590.0,0.25139631]
[1754883382499,1.8424963,121600.0,121590.0,0.21048631]
[1754883382704,1.8424963,121600.0,121590.0,0.25556521]
[1754883382905,2.1098229,121600.0,121590.0,0.44696053]
[1754883383105,2.1098229,121600.0,121590.0,0.44796053]
[1754883383505,1.3385829,121600.0,121590.0,0.28979053]
[1754883383705,2.1098229,121600.0,121590.0,0.41374364]
[1754883384308,1.3385829,121600.0,121590.0,0.41374364]
[1754883384525,2.1098629,121600.0,121590.0,0.41374364]
[1754883384908,2.1098629,121600.0,121590.0,0.17733832]
[1754883385309,2.1098629,121600.0,121590.0,0.22234832]
[1754883385510,2.1098629,121600.0,121590.0,0.21681113]
[1754883387004,2.1098629,121600.0,121590.0,0.17180113]
[1754883388404,2.1098629,121600.0,121590.0,0.12912201]
[1754883388612,0.0822365,121590.0,121580.0,0.04501]
[1754883388813,0.7104631,121590.0,121580.0,0.28141532]
[1754883389118,0.7104631,121590.0,121580.0,0.49078345]
[1754883389501,1.4817031,121590.0,121580.0,0.4908517]
[1754883389706,1.4817031,121590.0,121580.0,0.6846317]
[1754883389899,1.4817031,121590.0,121580.0,0.4928517]
[1754883390100,0.7104631,121590.0,121580.0,0.4928517]
[1754883390304,1.4817031,121590.0,121580.0,0.4928517]
[1754883390709,0.7104631,121590.0,121580.0,0.15851779]
[1754883390905,0.3362918,121560.0,121550.0,0.19178]
[1754883391107,3.2780484,121560.0,121550.0,0.2604]
[1754883391408,2.2394418,121560.0,121550.0,0.46536723]
[1754883391610,3.29681508,121560.0,121550.0,0.46536723]
[1754883391911,3.29681508,121560.0,121550.0,0.46545688]
[1754883392309,2.44471508,121560.0,121550.0,0.75917812]
[1754883392613,3.21595508,121560.0,121550.0,0.76717812]
[1754883392913,2.48972508,121560.0,121550.0,0.97750812]
[1754883393308,2.42230508,121560.0,121550.0,0.97750812]
[1754883393510,3.21595508,121560.0,121550.0,0.97750812]
[1754883393708,2.94862848,121560.0,121550.0,0.97750812]
[1754883393908,2.17738848,121560.0,121550.0,0.97750812]
[1754883394110,3.26100508,121560.0,121550.0,0.68378688]
[1754883394712,3.21599508,121560.0,121550.0,0.68378688]
[1754883395209,2.94866848,121560.0,121550.0,0.68378688]
[1754883395415,2.17738848,121560.0,121550.0,0.68378688]
[1754883395618,2.89496848,121560.0,121550.0,0.68378688]
[1754883396115,2.91737848,121560.0,121550.0,0.56106663]
[1754883396314,3.22971508,121560.0,121550.0,0.56106663]
[1754883396516,3.22971508,121560.0,121550.0,0.68447146]
[1754883397303,3.22971508,121560.0,121550.0,0.75118291]
[1754883398615,3.22971508,121560.0,121550.0,0.74718291]
[1754883398616,2.91741848,121560.0,121550.0,0.74718291]
[1754883399407,2.96242848,121560.0,121550.0,0.74718291]
[1754883399613,3.22975508,121560.0,121550.0,0.67856291]
[1754883399814,3.22975508,121560.0,121550.0,0.32179291]
[1754883400320,3.22975508,121560.0,121550.0,0.75031291]
[1754883400917,3.22975508,121560.0,121550.0,0.75441291]
[1754883401317,3.22975508,121560.0,121550.0,0.51396291]
[1754883401520,3.18470508,121560.0,121550.0,0.75441291]
[1754883401720,3.22971508,121560.0,121550.0,0.75441291]
[1754883402522,3.22971508,121560.0,121550.0,0.75041291]
[1754883402523,3.23071508,121560.0,121550.0,0.75041291]
[1754883403422,3.23071508,121560.0,121550.0,0.50996291]
[1754883403813,2.45947508,121560.0,121550.0,0.50996291]
[1754883404021,3.23071508,121560.0,121550.0,0.75041291]
[1754883404221,3.23071508,121560.0,121550.0,0.50996291]
[1754883404522,2.96338848,121560.0,121550.0,0.75041291]
[1754883404722,3.23071508,121560.0,121550.0,0.75041291]
[1754883405020,3.23071508,121560.0,121550.0,0.74631291]
[1754883406524,3.23071508,121560.0,121550.0,0.67960146]
[1754883407425,3.23071508,121560.0,121550.0,0.67966029]
[1754883407921,3.18570508,121560.0,121550.0,0.20580029]
[1754883408120,2.89133768,121560.0,121550.0,0.20580029]
[1754883408324,3.23063508,121560.0,121550.0,0.67966029]
[1754883408928,2.45947508,121560.0,121550.0,0.20580029]
[1754883409120,3.23063508,121560.0,121550.0,0.25114029]
[1754883409324,3.23063508,121560.0,121550.0,0.53985029]
[1754883409727,3.23063508,121560.0,121550.0,0.46810029]
[1754883410027,3.23063508,121560.0,121540.0,0.13725605]
[1754883410028,0.2834339,121520.0,121510.0,0.40186]
[1754883410227,1.6828205,121520.0,121510.0,0.45012]
[1754883410424,1.3216839,121520.0,121510.0,0.57271364]
[1754883410630,1.4154939,121520.0,121510.0,0.65498092]
[1754883410821,1.4154939,121520.0,121510.0,0.65506354]
[1754883411017,0.6443339,121520.0,121510.0,0.65506354]
[1754883411226,1.6893405,121520.0,121510.0,0.72010525]
[1754883411426,0.4760439,121520.0,121510.0,0.72010525]
[1754883411625,0.5698539,121520.0,121510.0,0.72910525]
[1754883411832,1.2537639,121520.0,121510.0,0.72910525]
[1754883412032,1.2537639,121520.0,121510.0,0.77444525]
[1754883412334,1.6149005,121520.0,121510.0,0.77444525]
[1754883412530,1.6148205,121520.0,121510.0,0.77444525]
[1754883412833,1.2536839,121520.0,121510.0,0.77444525]
[1754883413036,0.4760439,121520.0,121510.0,0.77444525]
[1754883413332,1.5681805,121520.0,121510.0,0.45631525]
[1754883413533,1.3474139,121520.0,121510.0,0.77444525]
[1754883413726,1.3006139,121520.0,121510.0,0.77444525]
[1754883413934,1.3954439,121520.0,121510.0,0.77444525]
[1754883414233,1.6986205,121520.0,121510.0,0.77444525]
[1754883415234,1.6986205,121520.0,121510.0,0.77854525]
[1754883415728,0.5232939,121520.0,121510.0,0.77854525]
[1754883415928,1.3097339,121520.0,121510.0,0.77854525]
[1754883416235,1.3562939,121520.0,121510.0,0.77854525]
[1754883416640,1.3097339,121520.0,121510.0,0.77854525]
[1754883417537,1.3560539,121520.0,121510.0,0.77854525]
[1754883418232,1.2291039,121520.0,121510.0,0.77854525]
[1754883418739,0.4431839,121520.0,121510.0,1.04587185]
[1754883419238,0.78582,121520.0,121510.0,1.04730352]
[1754883419940,0.0001,121520.0,121510.0,1.04730352]
[1754883420136,0.0001,121520.0,121510.0,1.21189552]
[1754883420337,0.08234102,121540.0,121530.0,0.47386]
[1754883420645,0.78607072,121540.0,121530.0,0.7411866]
[1754883420838,7.072e-05,121540.0,121530.0,0.86412053]
[1754883421143,0.08234102,121540.0,121530.0,0.67908829]
[1754883421436,0.78631072,121540.0,121530.0,0.94641489]
[1754883421748,0.78641072,121540.0,121530.0,0.94641489]
[1754883421940,0.97130102,121540.0,121530.0,0.68108829]
[1754883422247,0.20921102,121540.0,121530.0,0.68108829]
[1754883422634,0.99545102,121540.0,121530.0,0.68308829]
[1754883423237,1.03408102,121540.0,121530.0,0.68308829]
[1754883423643,1.30140762,121540.0,121530.0,0.56599829]
[1754883423832,1.66220762,121540.0,121530.0,0.68308829]
[1754883424439,0.91197762,121540.0,121530.0,0.39729829]
[1754883424741,0.91197762,121540.0,121530.0,0.36495829]
[1754883424941,1.69749762,121540.0,121530.0,0.65074829]
[1754883425644,0.91197762,121540.0,121530.0,0.65074829]
[1754883425842,1.69717762,121540.0,121530.0,0.65484829]
[1754883426037,1.69705762,121540.0,121530.0,0.65484829]
[1754883426237,0.91197762,121540.0,121530.0,0.21332829]
[1754883426745,1.69693762,121540.0,121530.0,0.21332829]
[1754883426938,0.91197762,121540.0,121530.0,0.21332829]
[1754883427139,1.69757762,121540.0,121530.0,0.21332829]
[1754883427339,0.91197762,121540.0,121530.0,0.21332829]
[1754883427848,1.69773762,121540.0,121530.0,0.21332829]
[1754883428047,0.64465102,121540.0,121530.0,0.21332829]
[1754883428346,1.69805762,121540.0,121530.0,0.21332829]
[1754883428742,0.64465102,121540.0,121530.0,0.69325829]
[1754883428938,0.64465102,121540.0,121530.0,0.68915829]
[1754883429138,1.43065102,121540.0,121530.0,0.68915829]
[1754883429646,0.64465102,121540.0,121530.0,0.68915829]
[1754883429837,1.43061102,121540.0,121530.0,0.68915829]
[1754883430038,0.64465102,121540.0,121530.0,0.68915829]
[1754883430234,1.43037102,121540.0,121530.0,0.68915829]
[1754883430439,0.91197762,121540.0,121530.0,0.68915829]
[1754883430737,1.69793762,121540.0,121530.0,0.68915829]
[1754883430945,0.91197762,121540.0,121530.0,0.68915829]
[1754883431645,1.69773762,121540.0,121530.0,0.68915829]
[1754883431943,0.91197762,121540.0,121530.0,0.68915829]
[1754883432143,0.36097072,121540.0,121530.0,1.23451372]
[1754883432444,0.78612,121540.0,121530.0,1.28451372]
[1754883432640,0.3608,121550.0,121540.0,0.47993]
[1754883432840,1.14692,121550.0,121540.0,0.47993]
[1754883433046,1.14692,121550.0,121540.0,0.60294932]
[1754883433238,1.14692,121550.0,121540.0,0.68932337]
[1754883433443,1.2291836,121550.0,121540.0,0.68932337]
[1754883433744,1.4701936,121550.0,121540.0,0.68932337]
[1754883433945,1.4943436,121550.0,121540.0,0.68932337]
[1754883434244,1.1335436,121550.0,121540.0,0.69032337]
[1754883434640,0.4977836,121550.0,121540.0,0.69032337]
[1754883434840,1.2594736,121550.0,121540.0,0.69032337]
[1754883435040,0.9007736,121550.0,121540.0,0.69032337]
[1754883435240,0.1149336,121550.0,121540.0,0.69032337]
[1754883435446,0.9004536,121550.0,121540.0,0.69032337]
[1754883436445,1.2202436,121550.0,121540.0,0.69032337]
[1754883436640,0.4591536,121550.0,121540.0,0.69032337]
[1754883436835,0.4591536,121550.0,121540.0,0.21039337]
[1754883436836,1.65927904,121550.0,121540.0,0.21039337]
[1754883437042,2.02007904,121550.0,121540.0,0.21039337]
[1754883437243,1.6433836,121550.0,121540.0,0.21039337]
[1754883437445,1.6433836,121550.0,121540.0,0.50084337]
[1754883437745,1.6433836,121550.0,121540.0,0.21139337]
[1754883437948,1.6433836,121550.0,121540.0,0.69132337]
[1754883438246,1.6433836,121550.0,121540.0,0.40187337]
[1754883438550,1.6433836,121550.0,121540.0,0.21139337]
[1754883438851,0.8585836,121550.0,121540.0,0.21139337]
[1754883439050,2.01963904,121550.0,121540.0,0.21139337]
[1754883439245,1.6429436,121550.0,121540.0,0.21139337]
[1754883439439,2.01963904,121550.0,121540.0,0.21139337]
[1754883440152,0.2715242,121520.0,121510.0,0.568086]
[1754883440346,1.0956542,121520.0,121510.0,0.568086]
[1754883440548,1.0956542,121520.0,121510.0,0.69206616]
[1754883440739,1.0956542,121520.0,121510.0,0.77434021]
[1754883441051,0.3119742,121520.0,121510.0,0.77434021]
[1754883441246,1.0956142,121520.0,121510.0,0.77934021]
[1754883441550,1.0552642,121520.0,121510.0,0.77934021]
[1754883441748,0.9733342,121520.0,121510.0,0.77934021]
[1754883441950,0.9730542,121520.0,121510.0,0.77934021]
[1754883442139,0.9730542,121520.0,121510.0,0.78234021]
[1754883443251,0.9972042,121520.0,121510.0,0.78234021]
[1754883444146,0.9972042,121520.0,121510.0,0.78644021]
[1754883445246,1.0549842,121520.0,121510.0,0.78644021]
[1754883445442,1.4157842,121520.0,121510.0,0.78644021]
[1754883445646,1.0549842,121520.0,121510.0,0.78644021]
[1754883445850,1.0953342,121520.0,121510.0,0.78644021]
[1754883446246,1.0549842,121520.0,121510.0,0.78644021]
[1754883446548,0.0001,121520.0,121510.0,0.78644021]
[1754883446755,0.78206,121520.0,121510.0,1.16313565]
[1754883446950,0.60765,121530.0,121520.0,0.47993]
[1754883447147,0.3608,121530.0,121520.0,0.85662544]
[1754883447449,1.14304,121530.0,121520.0,0.9804235]
[1754883447648,1.14304,121530.0,121520.0,1.06271786]
[1754883447847,1.2253174,121530.0,121520.0,1.06271786]
[1754883448048,1.2254174,121530.0,121520.0,1.06271786]
[1754883448353,1.2254174,121530.0,121520.0,1.06571786]
[1754883448354,1.2254574,121530.0,121520.0,1.06571786]
[1754883448850,1.2254574,121530.0,121520.0,1.06771786]
[1754883449042,1.14318,121530.0,121520.0,1.06771786]
[1754883449855,0.3609,121530.0,121520.0,1.06771786]
[1754883450153,1.2252574,121530.0,121520.0,1.06771786]
[1754883450348,1.14298,121530.0,121520.0,1.06771786]
[1754883451254,1.2252575,121530.0,121520.0,1.06771786]
[1754883451550,0.6324175,121530.0,121520.0,1.06771786]
[1754883451750,1.4133775,121530.0,121520.0,0.69102242]
[1754883452849,1.4133775,121530.0,121520.0,0.62057242]
[1754883453153,1.4537275,121530.0,121520.0,0.69102242]
[1754883453752,0.6727675,121530.0,121520.0,0.69102242]
[1754883453954,1.4530875,121530.0,121520.0,0.69102242]
[1754883455051,0.6727675,121530.0,121520.0,0.69102242]
[1754883455258,1.33006,121530.0,121520.0,0.69102242]
[1754883455453,1.4123374,121530.0,121520.0,0.69102242]
[1754883455758,0.0001,121530.0,121520.0,1.06771786]
[1754883455957,0.77974,121530.0,121520.0,1.06771786]
[1754883456158,0.77974,121530.0,121520.0,1.42851786]
[1754883456657,0.81585,121530.0,121520.0,1.42851786]
[1754883457751,0.3127274,121530.0,121520.0,1.05182242]
[1754883457947,1.0917674,121530.0,121520.0,1.05182242]
[1754883458354,1.4525674,121530.0,121520.0,0.69102242]
[1754883458554,1.4526074,121530.0,121520.0,0.69102242]
[1754883460059,1.27208,121530.0,121520.0,0.69102242]
[1754883460360,0.77926,121530.0,121520.0,1.42851786]
[1754883460860,0.77926,121530.0,121520.0,1.06771786]
[1754883461156,0.8615374,121530.0,121520.0,1.42851786]
[1754883461463,1.0511374,121530.0,121520.0,0.69102242]
[1754883462256,1.0511374,121530.0,121520.0,0.95902861]
[1754883463155,1.0914874,121530.0,121520.0,0.95902861]
[1754883463657,0.3127274,121530.0,121520.0,0.96312861]
[1754883463962,1.0908474,121530.0,121520.0,0.96312861]
[1754883464657,1.0908474,121530.0,121520.0,0.45462242]
[1754883464853,1.0908474,121530.0,121520.0,0.69618242]
[1754883465057,1.0908474,121530.0,121520.0,0.96418861]
[1754883465851,1.0908474,121530.0,121520.0,1.20035984]
[1754883466251,1.0908474,121530.0,121520.0,0.93235365]
[1754883467262,1.4516474,121530.0,121520.0,0.93235365]
[1754883467469,1.4516474,121530.0,121520.0,0.92825365]
[1754883469261,0.6735274,121530.0,121520.0,0.44726365]
[1754883469460,0.50412668,121560.0,121550.0,0.47934]
[1754883469655,0.50412668,121560.0,121550.0,1.10814619]
[1754883469861,1.28048668,121560.0,121550.0,1.23619094]
[1754883470057,0.50412668,121560.0,121550.0,1.23619094]
[1754883470258,0.50412668,121560.0,121550.0,1.31847853]
[1754883470461,1.28044668,121560.0,121550.0,1.31847853]
[1754883470660,1.28054668,121560.0,121550.0,1.31847853]
[1754883471058,1.28054668,121560.0,121550.0,1.32247853]
[1754883471455,0.50422668,121560.0,121550.0,1.32247853]
[1754883471659,1.28014668,121560.0,121550.0,1.32247853]
[1754883472168,1.28014668,121560.0,121550.0,1.05347234]
[1754883473460,1.28014668,121560.0,121550.0,0.73125234]
[1754883473667,0.58648378,121560.0,121550.0,0.73125234]
[1754883473966,1.36204378,121560.0,121550.0,0.90421234]
[1754883474565,1.36304378,121560.0,121550.0,0.90421234]
[1754883474962,0.58748378,121560.0,121550.0,0.57413234]
[1754883475168,1.36288378,121560.0,121550.0,0.21333234]
[1754883475962,1.36188378,121560.0,121550.0,0.21433234]
[1754883476862,0.58648378,121560.0,121550.0,0.21433234]
[1754883477056,1.36172378,121560.0,121550.0,0.21433234]
[1754883477564,2.49948378,121560.0,121550.0,0.38429234]
[1754883477766,2.49948378,121560.0,121550.0,0.38329234]
[1754883478162,2.49876378,121560.0,121550.0,0.38329234]
[1754883478366,2.49876378,121560.0,121550.0,0.49448234]
[1754883478669,2.49876378,121560.0,121550.0,0.49548234]
[1754883478856,2.49876378,121560.0,121550.0,0.21133234]
[1754883480263,2.49876378,121560.0,121550.0,0.64206234]
[1754883480664,1.64198668,121560.0,121550.0,1.42816333]
[1754883481165,1.13786,121560.0,121550.0,1.42824255]
[1754883481871,1.91238,121560.0,121550.0,1.58867855]
[1754883482371,1.91226,121560.0,121550.0,1.59277855]
[1754883483673,1.91226,121560.0,121550.0,1.42824255]
[1754883483863,1.91226,121560.0,121550.0,1.42414255]
[1754883484369,1.18774,121560.0,121550.0,1.42414255]
[1754883484573,2.13109,121560.0,121550.0,1.42414255]
[1754883485373,2.20051,121560.0,121550.0,1.42414255]
[1754883485570,1.42627,121560.0,121550.0,1.42414255]
[1754883485770,2.20031,121560.0,121550.0,1.42414255]
[1754883486672,2.20031,121560.0,121550.0,1.68694255]
[1754883488072,2.20031,121560.0,121550.0,1.68412255]
[1754883489267,2.20031,121560.0,121550.0,1.68822255]
[1754883489887,2.19979,121560.0,121550.0,1.68822255]
[1754883490078,1.96126,121560.0,121550.0,1.68822255]
[1754883490972,2.13298,121560.0,121550.0,1.68822255]
[1754883491376,2.2016,121560.0,121550.0,1.68822255]
[1754883492273,0.08215,121810.0,121550.0,1.68822255]
[1754883492274,0.1644399,121620.0,121560.0,0.12071]
[1754883492475,1.24613,121610.0,121600.0,0.73749099]
[1754883492680,0.47301,121610.0,121600.0,1.09829099]
[1754883492977,1.24613,121610.0,121600.0,1.42521117]
[1754883493180,0.47301,121610.0,121600.0,1.42521117]
[1754883493478,1.24623,121610.0,121600.0,1.49165682]
[1754883494279,0.47311,121610.0,121600.0,1.49365682]
[1754883494581,1.24623,121610.0,121600.0,1.49365682]
[1754883496480,1.24623,121610.0,121600.0,1.49465682]
[1754883497484,1.05951,121610.0,121600.0,1.49875682]
[1754883497780,1.05951,121610.0,121600.0,1.00135583]
[1754883497984,0.47311,121610.0,121600.0,1.00135583]
[1754883498184,1.24611,121610.0,121600.0,1.12206583]
[1754883498385,1.24611,121610.0,121600.0,1.49875682]
[1754883500081,1.24607,121610.0,121600.0,1.49875682]
[1754883501184,1.24607,121610.0,121600.0,1.13795682]
[1754883501385,0.47311,121610.0,121600.0,1.13795682]
[1754883501587,1.24603,121610.0,121600.0,1.13795682]
[1754883501990,1.3282533,121610.0,121600.0,1.13795682]
[1754883502290,1.24603,121610.0,121600.0,1.13795682]
[1754883502592,1.24603,121610.0,121600.0,1.13695682]
[1754883502788,1.24603,121610.0,121600.0,1.13595682]
[1754883502988,1.3282534,121610.0,121600.0,1.13595682]
[1754883503688,1.3282534,121610.0,121600.0,0.75926583]
[1754883503888,1.3282534,121610.0,121600.0,1.13595682]
[1754883504485,0.5553334,121610.0,121600.0,0.63855583]
[1754883504689,0.93302439,121610.0,121600.0,0.22775583]
[1754883504892,0.2688701,121600.0,121590.0,0.3608]
[1754883505191,0.5553401,121600.0,121590.0,0.48799597]
[1754883505390,2.06567109,121600.0,121590.0,0.08442943]
[1754883505694,1.6889801,121600.0,121590.0,0.08442943]
[1754883505887,1.6889801,121600.0,121590.0,0.08453417]
[1754883506088,1.6889801,121600.0,121590.0,0.08653417]
[1754883506993,1.6889801,121600.0,121590.0,0.15201984]
[1754883511196,0.9161401,121600.0,121590.0,0.15611984]
[1754883511402,0.5553401,121600.0,121590.0,0.15611984]
[1754883511601,1.3281401,121600.0,121590.0,0.15611984]
[1754883516903,1.3281401,121600.0,121590.0,0.15201984]
[1754883517807,2.4645001,121600.0,121590.0,0.15201984]
[1754883518111,2.4645001,121600.0,121590.0,0.20174984]
[1754883519911,2.4645001,121600.0,121590.0,0.15201984]
[1754883521211,2.4644201,121600.0,121590.0,0.15201984]
[1754883521707,2.73215858,121600.0,121590.0,0.15201984]
[1754883522316,2.4643801,121600.0,121590.0,0.15201984]
[1754883524218,2.8251801,121600.0,121590.0,0.15201984]
[1754883524618,2.8251401,121600.0,121590.0,0.15201984]
[1754883524818,2.0525001,121600.0,121590.0,0.15201984]
[1754883525117,2.8251401,121600.0,121590.0,0.15201984]
[1754883526008,2.0525001,121600.0,121590.0,0.15201984]
[1754883526215,2.8251001,121600.0,121590.0,0.15201984]
[1754883526515,3.09283858,121600.0,121590.0,0.15611984]
[1754883527815,2.8251001,121600.0,121590.0,0.15611984]
[1754883529214,2.0525001,121600.0,121590.0,0.15611984]
[1754883529418,2.8250601,121600.0,121590.0,0.15611984]
[1754883529613,3.09279858,121600.0,121590.0,0.15611984]
[1754883529814,2.8250601,121600.0,121590.0,0.15611984]
[1754883530917,3.09279858,121600.0,121590.0,0.15611984]
[1754883531217,3.09275858,121600.0,121590.0,0.15611984]
[1754883533014,2.8250201,121600.0,121590.0,0.15611984]
[1754883533216,3.09275858,121600.0,121590.0,0.15611984]
[1754883535226,2.32023858,121600.0,121590.0,0.15611984]
[1754883535521,3.09267858,121600.0,121590.0,0.15611984]
[1754883536822,2.8249401,121600.0,121590.0,0.15611984]
[1754883537018,3.09267858,121600.0,121590.0,0.15611984]
[1754883537323,2.8249401,121600.0,121590.0,0.15611984]
[1754883540426,3.09267858,121600.0,121590.0,0.15611984]
[1754883541918,1.5118301,121600.0,121590.0,1.26735832]
[1754883542221,2.2841101,121600.0,121590.0,1.26735832]
[1754883544122,1.5118301,121600.0,121590.0,1.26735832]
[1754883544322,2.2840301,121600.0,121590.0,1.26735832]
[1754883546023,1.5118301,121600.0,121590.0,1.26735832]
[1754883546221,2.2840301,121600.0,121590.0,1.26735832]
[1754883546624,2.2812701,121600.0,121590.0,1.26735832]
[1754883548425,1.5090701,121600.0,121590.0,1.26735832]
[1754883548631,2.2811901,121600.0,121590.0,1.26735832]
[1754883552928,1.9906101,121600.0,121590.0,1.26735832]
[1754883553133,2.2721001,121600.0,121590.0,1.26735832]
[1754883553432,0.01473603,121620.0,121590.0,0.83465832]
[1754883553639,0.19711,121640.0,121610.0,0.98933848]
[1754883553934,0.04704,121630.0,121610.0,0.3608]
[1754883554234,0.04704,121630.0,121620.0,0.36086158]
[1754883554433,0.77188,121630.0,121620.0,0.36086158]
[1754883554630,0.77198,121630.0,121620.0,0.74192349]
[1754883554830,0.81902,121630.0,121620.0,0.8241468]
[1754883555035,0.04714,121630.0,121620.0,1.09188528]
[1754883555230,0.81902,121630.0,121620.0,1.09188528]
[1754883555437,0.81902,121630.0,121620.0,1.59188528]
[1754883556431,0.82002,121630.0,121620.0,1.59188528]
[1754883556827,0.81902,121630.0,121620.0,1.59188528]
[1754883557032,0.82002,121630.0,121620.0,1.59188528]
[1754883557228,0.82202,121630.0,121620.0,1.59188528]
[1754883557428,0.05014,121630.0,121620.0,1.59188528]
[1754883557634,0.8219,121630.0,121620.0,1.59188528]
[1754883560537,0.4817,121630.0,121620.0,1.0671819]
[1754883560742,1.3354304,121630.0,121620.0,1.0671819]
[1754883561045,1.3354304,121630.0,121620.0,1.33492038]
[1754883561439,1.3354304,121630.0,121620.0,0.83492038]
[1754883561645,0.5639104,121630.0,121620.0,0.83492038]
[1754883561940,1.25314,121630.0,121620.0,0.83492038]
[1754883562645,0.4817,121630.0,121620.0,0.83492038]
[1754883562842,1.2531,121630.0,121620.0,0.83492038]
[1754883563137,1.3353104,121630.0,121620.0,0.5671819]
[1754883563340,1.3353104,121630.0,121620.0,0.83492038]
[1754883563542,1.3352704,121630.0,121620.0,0.83492038]
[1754883564345,0.5639104,121630.0,121620.0,0.83492038]
[1754883564644,0.5639104,121630.0,121620.0,0.5671819]
[1754883564942,1.3352304,121630.0,121620.0,0.5671819]
[1754883565143,1.3352304,121630.0,121620.0,0.2063819]
[1754883565543,1.3352304,121630.0,121620.0,0.47412038]
[1754883565740,1.3352304,121630.0,121620.0,0.2063819]
[1754883565942,0.2793272,121620.0,121610.0,0.6277]
[1754883566142,0.5609172,121620.0,121610.0,0.6277]
[1754883566349,0.5609172,121620.0,121610.0,1.01811399]
[1754883566638,1.01553,121620.0,121610.0,1.29113392]
[1754883566838,1.24998,121620.0,121610.0,1.25975392]
[1754883567036,1.24998,121620.0,121610.0,1.25983063]
[1754883567239,1.25098,121620.0,121610.0,1.29121063]
[1754883567437,0.09732,121620.0,121610.0,1.29121063]
[1754883567639,0.04814,121620.0,121610.0,1.28711063]
[1754883567841,0.4786,121640.0,121630.0,0.29889]
[1754883568041,1.24984,121640.0,121630.0,0.95880848]
[1754883568347,1.24984,121640.0,121630.0,1.08167613]
[1754883568541,1.24984,121640.0,121630.0,1.16390282]
[1754883569138,0.90136,121640.0,121630.0,1.16390282]
[1754883569346,0.09822,121640.0,121630.0,2.0552413]
[1754883569545,0.33267,121640.0,121630.0,1.78750282]
[1754883569748,1.10387,121640.0,121630.0,1.79160282]
[1754883570045,0.33267,121640.0,121630.0,1.52386434]
[1754883570247,1.13577,121640.0,121630.0,1.89997075]
[1754883570547,1.13777,121640.0,121630.0,1.89997075]
[1754883571544,0.36657,121640.0,121630.0,1.89997075]
[1754883571743,0.4826,121640.0,121630.0,1.52386434]
[1754883571943,1.2602,121640.0,121630.0,1.89997075]
[1754883572849,0.4826,121640.0,121630.0,1.89997075]
[1754883573149,1.26024,121640.0,121630.0,1.89997075]
[1754883573353,1.14421,121640.0,121630.0,1.89997075]
[1754883576745,1.14121,121640.0,121630.0,1.89997075]
[1754883580054,1.25556,121640.0,121630.0,1.89997075]
[1754883580352,1.2552,121640.0,121630.0,1.89997075]
[1754883581155,0.4796,121640.0,121630.0,1.89997075]
[1754883581346,1.25512,121640.0,121630.0,1.89997075]
[1754883584052,1.25512,121640.0,121630.0,1.33306434]
[1754883584261,0.4796,121640.0,121630.0,1.87883075]
[1754883584474,1.25444,121640.0,121630.0,1.87883075]
[1754883585968,0.4796,121640.0,121630.0,1.87883075]
[1754883586170,1.25416,121640.0,121630.0,1.19359434]
[1754883586370,1.3363636,121640.0,121630.0,1.18949434]
[1754883586569,1.3363636,121640.0,121630.0,0.46789434]
[1754883587071,1.3358036,121640.0,121630.0,0.46789434]
[1754883588865,1.29871001,121640.0,121630.0,0.20509434]
[1754883589064,0.2739671,121620.0,121610.0,0.36087671]
[1754883589267,1.3210071,121620.0,121610.0,0.36087671]
[1754883589467,1.3210071,121620.0,121610.0,0.56595063]
[1754883589666,1.3210071,121620.0,121610.0,0.77163063]
[1754883590061,0.5476471,121620.0,121610.0,0.77163063]
[1754883590267,1.3207271,121620.0,121610.0,1.03925931]
[1754883590475,0.5476471,121620.0,121610.0,0.21025063]
[1754883590674,1.3206471,121620.0,121610.0,0.20615063]
[1754883591174,1.3204471,121620.0,121610.0,0.20615063]
[1754883591666,1.95119578,121620.0,121610.0,0.20915063]
[1754883591866,3.08471578,121620.0,121610.0,0.21225063]
[1754883592066,3.08591578,121620.0,121610.0,0.21225063]
[1754883592269,2.8182871,121620.0,121610.0,0.20925063]
[1754883592470,2.8192871,121620.0,121610.0,0.20925063]
[1754883592672,2.8182871,121620.0,121610.0,0.20925063]
[1754883592869,2.8192871,121620.0,121610.0,0.20925063]
[1754883595971,2.0463671,121620.0,121610.0,0.20925063]
[1754883596177,3.08627578,121620.0,121610.0,0.20925063]
[1754883596478,0.5476606,121600.0,121590.0,0.06548567]
[1754883596676,0.2739874,121590.0,121580.0,0.3608]
[1754883596885,0.5476674,121590.0,121580.0,0.72437]
[1754883597178,0.5476674,121590.0,121580.0,0.85204592]
[1754883597380,0.5476674,121590.0,121580.0,1.27094113]
[1754883597574,0.5664171,121590.0,121580.0,1.27094113]
[1754883598471,0.5664171,121590.0,121580.0,1.27394113]
[1754883598672,0.5664171,121590.0,121580.0,0.99822715]
[1754883598870,0.5664171,121590.0,121580.0,1.00232715]
[1754883599480,0.5664171,121590.0,121580.0,0.71047715]
[1754883599775,0.5664171,121590.0,121580.0,0.76121715]
[1754883600972,0.5664171,121590.0,121580.0,0.31087715]
[1754883601176,0.9272171,121590.0,121580.0,0.27895715]
[1754883601478,1.6988171,121590.0,121580.0,0.27485715]
[1754883601868,0.2104997,121590.0,121580.0,1.02474583]
[1754883602074,1.3381371,121590.0,121580.0,1.38554583]
[1754883602476,1.2558997,121590.0,121580.0,1.38554583]
[1754883602677,1.3381371,121590.0,121580.0,1.38554583]
[1754883604274,0.5664171,121590.0,121580.0,1.38554583]
[1754883604475,1.3380171,121590.0,121580.0,1.11791715]
[1754883604673,1.3380171,121590.0,121580.0,1.38554583]
[1754883605380,0.5664171,121590.0,121580.0,1.38554583]
[1754883605572,1.3380171,121590.0,121580.0,1.38554583]
[1754883605777,1.2919871,121590.0,121580.0,1.38554583]
[1754883606678,1.2919871,121590.0,121580.0,1.38964583]
[1754883607182,1.0643371,121590.0,121580.0,1.38964583]
[1754883607483,1.1320671,121590.0,121580.0,1.38964583]
[1754883607685,1.2980071,121590.0,121580.0,1.38964583]
[1754883607878,0.3609,121600.0,121590.0,0.46271]
[1754883608071,0.6766967,121610.0,121590.0,0.46271]
[1754883608072,0.37942566,121610.0,121600.0,0.46271]
[1754883608389,1.36969,121620.0,121610.0,0.46271]